Workbook

Sheet Sheet1
C2: SAPLAMALI KİRİŞ HESAP KESME KUVVETİ VE MOMENT HESABI (inş.müh. Gürcan BERBEROĞLU tel: 0532 366 02 04 www.betoncelik.com )
Z3: dikkat sadece sarı hücrelere rakam giriniz.
D5: Ma = | F5: 125 | H5: KNm | M5: P= | N5: 35 | P5: KN | U5: Mb = | W5: 135 | Y5: KNm
Q6: q= | R6: 15 | T6: KN/m
AH9: d = | AI9: 0.65 | AK9: m
Q10: =G13-J17*R6 -> 52.5
Q11: =G13-J17*R6-N5 -> 17.5
Q12: =IF(V29=1,J17+Q11*R17/(Q11-V36),IF(V29=2,J17,0)) -> 5.166666667
F13: A = | G13: =+F58 -> 112.5 | I13: KN | Q13: =G21*J17/(G21-Q10) -> 7.5 | U13: B = | V13: =+F55 -> 102.5 | X13: KN
F15: a1= | G15: 0.35 | I15: m | U15: a2= | V15: 0.5 | X15: m | Y15: (mesnet genişliği)
I17: a= | J17: 4 | L17: m | Q17: b= | R17: 8 | T17: m
M19: L= | N19: =+J17+R17 -> 12 | P19: m
G21: =+F58 -> 112.5 | H21: =+AB60 -> 109.875
J22: =+AK61 -> 100.125
O26: =IF(OR(V29=1,V29=2),F58-J17*R6,"") -> 52.5 | Z26: kesme kuvveti diyagramı (KN)
O28: =IF(V29=1,F58-J17*R6-N5,"") -> 17.5 | AD28: kolon eksen
V29: =IF(AND((F58-J17*R6)>0,(F58-J17*R6-N5)>0),1,IF(AND((F58-J17*R6)>0,(F58-J17*R6-N5)<0),2,IF(AND((F58-J17*R6)<0,(F58-J17*R6-N5)<0),3,"hatalı"))) -> 1 | AD29: kolon yüzü
AD30: kolon yüzünden d mesafede
M31: =IF(V29=3,F58-J17*R6,"") -> 
M33: =IF(OR(V29=2,V29=3),F58-J17*R6-N5,"") -> 
J34: =IF(V29=3,G21*J17/(G21-M31),"") ->  | L34: =IF(V29=3,"m","") -> 
K35: =IF(V29=1,J17+Q11*R17/(Q11-V36),IF(V29=2,J17,"")) -> 5.166666667 | M35: =IF(OR(V29=1,V29=2),"m","") -> m | R35: =-AK66 -> -89
U36: =-AC65 -> -98.75 | V36: =-F55 -> -102.5
G41: =+F5 -> 125 | H41: =+AN62 -> 105.5421875 | U41: =+AO67 -> 109.84375 | V41: =+W5 -> 135
Z45: moment diyagramı (KNm)
O46: =IF(AND(V29=1,(F5-(G21+Q10)/2*J17-Q11*(Q12-J17)/2)>0),(F5-(G21+Q10)/2*J17-Q11*(Q12-J17)/2),IF(AND(V29=2,(F5-(G21+Q10)/2*Q12)>0),(F5-(G21+Q10)/2*Q12),IF(AND(V29=3,(F5-F58*Q13/2)>0),(F5-F58*Q13/2),""))) -> 
V47: =IF(AND(V29=1,(F5-(G21+Q10)/2*J17-Q11*(Q12-J17)/2)<0),1,IF(AND(V29=1,(F5-(G21+Q10)/2*J17-Q11*(Q12-J17)/2)>0),2,IF(AND(V29=2,(F5-(G21+Q10)/2*Q12)<0),3,IF(AND(V29=2,(F5-(G21+Q10)/2*Q12)>0),4,IF(AND(V29=3,(F5-F58*Q13/2)<0),5,IF(AND(V29=3,(F5-F58*Q13/2)>0),6,"hatalı")))))) -> 1 | AD47: kolon eksen
AD48: kolon yüzü
N51: =IF(AND(V29=1,(F5-(G21+Q10)/2*J17-Q11*(Q12-J17)/2)<0),(F5-(G21+Q10)/2*J17-Q11*(Q12-J17)/2),IF(AND(V29=2,(F5-(G21+Q10)/2*Q12)<0),(F5-(G21+Q10)/2*Q12),IF(AND(V29=3,(F5-F58*Q13/2)<0),(F5-F58*Q13/2),""))) -> -215.2083333
T52: =IF(AND(V29=3,(F5*J17/(F5+W5))<0),(F5*J17/(F5+W5)),"") -> 
E53: B = ( Mb - Ma + P * a + q * L * L / 2 ) / L
E54: B=( | F54: =+W5 -> 135 | H54: - | I54: =+F5 -> 125 | K54: + | L54: =+N5 -> 35 | N54: * | O54: =+J17 -> 4 | Q54: + | R54: =+R6 -> 15 | T54: * | U54: =+N19 -> 12 | W54: * | X54: =+N19 -> 12 | Z54: / | AA54: 2 | AB54: ) / | AC54: =+N19 -> 12
E55: B = | F55: =(F54-I54+L54*O54+R54*U54*X54/AA54)/AC54 -> 102.5 | H55: KN
E56: A= P + q * L - B
E57: A= | F57: =+N5 -> 35 | H57: + | I57: =+R6 -> 15 | K57: * | L57: =+N19 -> 12 | N57: - | O57: =+F55 -> 102.5
E58: A= | F58: =+F57+I57*L57-O57 -> 112.5 | H58: KN
E60: sol mesnet yüzü kesme kuvveti = A - q * a1 / 2 = | Q60: =+F58 -> 112.5 | S60: - | T60: =+R6 -> 15 | V60: * | W60: =+G15 -> 0.35 | Y60: / | Z60: 2 | AA60: = | AB60: =+Q60-T60*W60/Z60 -> 109.875 | AD60: KN
E61: sol mesnet yüzünden d mesafede kesme kuvveti = A - q * ( d + a1 / 2 ) = | W61: =+F58 -> 112.5 | Y61: - | Z61: =+R6 -> 15 | AB61: * ( | AC61: =+AI9 -> 0.65 | AE61: + | AF61: =+G15 -> 0.35 | AH61: / | AI61: 2 | AJ61: ) = | AK61: =+W61-Z61*(AC61+AF61/AI61) -> 100.125 | AM61: KN
E62: sol mesnet yüzü moment = Ma - ( A + mesnet yüzü kesme kuv.) / 2 * a1 / 2 = | X62: =+F5 -> 125 | Z62: - ( | AA62: =+F58 -> 112.5 | AC62: + | AD62: =+AB60 -> 109.875 | AF62: ) / | AG62: 2 | AH62: * | AI62: =+G15 -> 0.35 | AK62: / | AL62: 2 | AM62: = | AN62: =X62-(AA62+AD62)/AG62*AI62/AL62 -> 105.5421875 | AP62: KNm
E63: TS 500 'e göre sol mesnet yüzü moment = Ma - A * a1 / 3 = | T63: =+F5 -> 125 | V63: - | W63: =+F58 -> 112.5 | Y63: * | Z63: =+G15 -> 0.35 | AB63: / | AC63: 3 | AD63: = | AE63: =T63-W63*Z63/AC63 -> 111.875 | AG63: KNm
E65: sağ mesnet yüzü kesme kuvveti = B - q * a2 / 2 = | R65: =+F55 -> 102.5 | T65: - | U65: =+R6 -> 15 | W65: * | X65: =+V15 -> 0.5 | Z65: / | AA65: 2 | AB65: = | AC65: =+R65-U65*X65/AA65 -> 98.75 | AE65: KN
E66: sağ mesnet yüzünden d mesafede kesme kuvveti = B - q * ( d + a2 / 2 ) = | W66: =+F55 -> 102.5 | Y66: - | Z66: =+R6 -> 15 | AB66: * ( | AC66: =+AI9 -> 0.65 | AE66: + | AF66: =+V15 -> 0.5 | AH66: / | AI66: 2 | AJ66: ) = | AK66: =+W66-Z66*(AC66+AF66/AI66) -> 89 | AM66: KN
E67: sağ mesnet yüzü moment = Mb - ( B + mesnet yüzü kesme kuv.) / 2 * a2 / 2 = | Y67: =+W5 -> 135 | AA67: - ( | AB67: =+F55 -> 102.5 | AD67: + | AE67: =+AC65 -> 98.75 | AG67: ) / | AH67: 2 | AI67: * | AJ67: =+V15 -> 0.5 | AL67: / | AM67: 2 | AN67: = | AO67: =Y67-(AB67+AE67)/AH67*AJ67/AM67 -> 109.84375 | AQ67: KNm
E68: TS 500 'e göre sağ mesnet yüzü moment = Mb - B * a2 / 3 = | T68: =+W5 -> 135 | V68: - | W68: =+F55 -> 102.5 | Y68: * | Z68: =+V15 -> 0.5 | AB68: / | AC68: 3 | AD68: = | AE68: =T68-W68*Z68/AC68 -> 117.9166667 | AG68: KNm

Sheet Sheet2

Sheet Sheet3
